Workbook

Sheet 1
A1: Школа | B1: МБОУ "Гимназия №28" Вахитовского района г. Казани | E1: Отд./корп | I1: День | J1: 2023-01-14
A3: Прием пищи | B3: Раздел | C3: № рец. | D3: Блюдо | E3: Выход, г | F3: Цена | G3: Калорийность | H3: Белки | I3: Жиры | J3: Углеводы
A4: Завтрак | B4: гор.блюдо | C4: № 243/2015 г | D4: Сосиски отварные | E4: ='[1]9-14, 23-28.01.2023'!$E$43 -> 100 | G4: ='[1]9-14, 23-28.01.2023'!G43 -> 144 | H4: ='[1]9-14, 23-28.01.2023'!H43 -> 9.4 | I4: ='[1]9-14, 23-28.01.2023'!I43 -> 11 | J4: ='[1]9-14, 23-28.01.2023'!J43 -> 1.8
B5: гор.напиток | C5: ='[1]9-14, 23-28.01.2023'!C45 -> ТТК 2021 г | D5: ='[1]9-14, 23-28.01.2023'!D45 -> Чай с сахаром, лимоном | E5: ='[1]9-14, 23-28.01.2023'!$E$45 -> 213 | G5: ='[1]9-14, 23-28.01.2023'!G45 -> 34 | H5: ='[1]9-14, 23-28.01.2023'!H45 -> 0.06 | I5: ='[1]9-14, 23-28.01.2023'!I45 -> 0.01 | J5: ='[1]9-14, 23-28.01.2023'!J45 -> 8.13
B6: хлеб | D6: Хлеб ржано-пшеничный/Хлеб пшеничный | E6: 30 | G6: 68 | H6: 1,89 | I6: 0,27 | J6: 14,13
B7: гарнир | C7: ='[1]9-14, 23-28.01.2023'!C44 -> № 202/2015 г | D7: ='[1]9-14, 23-28.01.2023'!D44 -> Макаронные изделия отваренные | E7: ='[1]9-14, 23-28.01.2023'!$E$44 -> 150 | G7: ='[1]9-14, 23-28.01.2023'!G44 -> 212 | H7: ='[1]9-14, 23-28.01.2023'!H44 -> 5.6 | I7: ='[1]9-14, 23-28.01.2023'!I44 -> 5.06 | J7: ='[1]9-14, 23-28.01.2023'!J44 -> 35.91
B8: холодные закуски
B9: мучные или кондитерские изделия | C9: ='[1]9-14, 23-28.01.2023'!C48 -> Акт 2019 | D9: ='[1]9-14, 23-28.01.2023'!D48 -> Печенье сдобное "Вкусное" | E9: 30 | G9: ='[1]9-14, 23-28.01.2023'!G48 -> 66 | H9: ='[1]9-14, 23-28.01.2023'!H48 -> 1.35 | I9: ='[1]9-14, 23-28.01.2023'!I48 -> 2.70 | J9: ='[1]9-14, 23-28.01.2023'!J48 -> 9.00
B10: фрукты
B11: кисломолочный продукт
D12: Итого: | E12: =SUM(E4:E11) -> 523 | F12: 62.10 | G12: 524 | H12: 18,3 | I12: 19,04 | J12: 68,97
A13: Завтрак 2 | B13: фрукты
A16: Обед | B16: закуска
B17: 1 блюдо
B18: 2 блюдо
B19: гарнир
B20: сладкое
B21: хлеб бел.
B22: хлеб черн.
